[Event "Moscow-ch Men 2019"]
[Site "Moscow"]
[Date "2019.04.06"]
[Round "8.15"]
[White "Kurdakov, Yuri"]
[Black "Dragomarezkij, Evgeni"]
[Result "0-1"]
[ECO "A15"]
[WhiteElo "2125"]
[BlackElo "2386"]
[Annotator "NA"]
[PlyCount "124"]
[EventDate "2019.03.30"]
[EventType "swiss"]
[EventCountry "RUS"]
[SourceTitle "playchess.com"]
[Source "ChessBase"]
[SourceQuality "1"]
[TimeControl "5400+30"]

1. c4 {[%emt 0:00:00]} Nf6 {[%emt 0:22:18]} 2. Nf3 {[%emt 0:03:34]} c5 {[%emt 0:00:39]} 3. Nc3 {[%emt 0:00:11]} g6 {[%emt 0:02:13]} 4. g3 {[%emt 0:00:08]} b6 {[%emt 0:00:54]} 5. Bg2 {[%emt 0:00:09]} Bb7 {[%emt 0:00:06]} 6. O-O {[%emt 0:00:06]} Bg7 {[%emt 0:00:15]} 7. b3 {[%emt 0:00:48] A30: Symmetrical English: Double Fianchetto and Hedgehog} Ne4 {[%emt 0:00:23]} 8. Bb2 {[%emt 0:00:11]} Nxc3 {[%emt 0:00:07]} 9. Bxc3 {[%emt 0:00:06]} Bxc3 {[%emt 0:00:07]} 10. dxc3 {[%emt 0:00:03]} d6 {[%emt 0:00:07]} 11. Re1 $146 {[%emt 0:01:26]} ({Predecessor:} 11. Qd2 h6 12. Rad1 Nd7 13. Nh4 Bxg2 14. Nxg2 Nf6 {½-½ (28) Kamsky,G (2721)-Ivanchuk,V (2731) Beijing 2013}) 11... Nd7 {[%emt 0:00:25]} 12. e4 {[%emt 0:02:26]} Qc7 {[%emt 0:03:00]} 13. Nd2 {[%emt 0:00:51]} h5 {[%emt 0:04:11]} 14. Nf1 {[%emt 0:02:03]} h4 {[%emt 0:02:31]} 15. Ne3 {[%emt 0:00:19]} e6 {[%emt 0:03:07]} 16. Qc2 {[%emt 0:02:43]} hxg3 {[%emt 0:04:05]} 17. hxg3 {[%emt 0:00:37]} O-O-O {[%emt 0:00:33]} 18. Nf1 {[%emt 0:19:08]} Ne5 {[%emt 0:03:18]} 19. f4 {[%emt 0:06:11]} Ng4 {[%emt 0:03:11]} 20. Qe2 $15 {[%emt 0:05:25]} Nf6 {[%emt 0:00:32]} 21. Qc2 {[%emt 0:16:05]} e5 {[%emt 0:01:39]} 22. fxe5 {[%emt 0:07:03]} dxe5 {[%emt 0:01:17]} 23. Rad1 {[%emt 0:01:12]} Nh5 {[%emt 0:05:43]} 24. Rxd8+ {[%emt 0:01:34]} Qxd8 {[%emt 0:02:33]} 25. Rd1 {[%emt 0:06:44]} Qg5 {[%emt 0:04:27]} 26. Qd3 {[%emt 0:05:46]} Nf6 {[%emt 0:10:33]} 27. Rd2 {[%emt 0:03:47]} Qg4 {[%emt 0:17:01]} 28. Nh2 {[%emt 0:02:24]} Qe6 {[%emt 0:00:52]} 29. Nf1 {[%emt 0:00:06]} Ng4 {[%emt 0:02:54]} 30. Bf3 {[%emt 0:01:27]} Re8 {[%emt 0:01:03]} 31. Qe2 {[%emt 0:00:52]} Nf6 {[%emt 0:00:31]} 32. Qd3 {[%emt 0:00:14]} Qh3 {[%emt 0:01:00]} 33. Bg2 {[%emt 0:00:15]} Qg4 {[%emt 0:00:28]} 34. Bf3 {[%emt 0:00:06]} Qd7 {[%emt 0:00:51]} 35. Qe3 {[%emt 0:01:21]} Qe7 {[%emt 0:00:10]} 36. Qd3 {[%emt 0:00:08]} Rd8 {[%emt 0:00:12]} 37. Qxd8+ {[%emt 0:00:06]} Qxd8 {[%emt 0:00:07]} 38. Rxd8+ {[%emt 0:00:05]} Kxd8 {[%emt 0:00:03]} 39. Nd2 {[%emt 0:00:21]} Ne8 {[%emt 0:01:02]} 40. Kf2 {[%emt 0:01:01]} Ke7 {[%emt 0:00:02]} 41. Ke3 {[%emt 0:04:17]} Nd6 {[%emt 0:00:04]} 42. Kf2 {[%emt 0:02:32]} Ke6 {[%emt 0:00:25]} 43. Ke3 {[%emt 0:00:13]} f5 {[%emt 0:00:08]} 44. Bg2 {[%emt 0:01:17]} Kf6 {[%emt 0:00:56]} 45. Bh1 {[%emt 0:00:59]} Nf7 {[%emt 0:00:49]} 46. Bf3 {[%emt 0:00:36]} Nd6 {[%emt 0:00:07]} 47. b4 {[%emt 0:01:33]} Ba6 {[%emt 0:02:19]} 48. exf5 {[%emt 0:02:07]} gxf5 {[%emt 0:00:45]} 49. Bd5 {[%emt 0:00:11]} Bb7 {[%emt 0:00:50]} 50. bxc5 {[%emt 0:03:26]} bxc5 {[%emt 0:00:02]} 51. Bg8 {[%emt 0:00:15]} Ne4 {[%emt 0:00:57]} 52. Nxe4+ {[%emt 0:00:06]} Bxe4 {[%emt 0:00:06]} 53. a3 {[%emt 0:01:08]} Bc6 {[%emt 0:00:27]} 54. Kf2 {[%emt 0:00:38]} Kg5 {[%emt 0:00:22]} 55. Be6 {[%emt 0:00:13]} Be4 {[%emt 0:00:32]} 56. Bd5 {[%emt 0:00:50]} Bc2 {[%emt 0:01:25]} 57. Bg2 {[%emt 0:00:24]} f4 {[%emt 0:00:19]} 58. gxf4+ {[%emt 0:00:04]} Kxf4 {[%emt 0:00:14]} 59. Ke2 {[%emt 0:00:33]} Be4 {[%emt 0:00:18]} 60. Bh3 {[%emt 0:00:54]} Bf3+ {[%emt 0:00:07]} 61. Ke1 {[%emt 0:00:23]} Ke3 {[%emt 0:00:11]} 62. Bf5 {[%emt 0:00:01]} e4 {[%emt 0:00:28]} 0-1

[Event "Moscow-ch Men 2019"]
[Site "Moscow"]
[Date "2019.04.06"]
[Round "8.16"]
[White "Pavlov, Mark"]
[Black "Gubajdullin, Alexei"]
[Result "0-1"]
[ECO "A40"]
[WhiteElo "1989"]
[BlackElo "2344"]
[Annotator "NA"]
[PlyCount "106"]
[EventDate "2019.03.30"]
[EventType "swiss"]
[EventCountry "RUS"]
[SourceTitle "playchess.com"]
[Source "ChessBase"]
[SourceQuality "1"]
[TimeControl "5400+30"]

1. d4 {[%emt 0:00:00]} g6 {[%emt 0:07:14]} 2. Nf3 {[%emt 0:00:00]} Bg7 {[%emt 0:00:02]} 3. Bg5 {[%emt 0:00:04]} h6 {[%emt 0:02:13]} (3... c5 4. c3 Nf6 5. e3 O-O 6. Nbd2 b6 7. a4 Bb7 8. Be2 d6 9. O-O a6 10. Ne1 Nbd7 11. Bf3 d5 12. Nd3 h6 13. Bxf6 Bxf6 14. a5 cxd4 15. exd4 {1-0 (57) Megaranto,S (2535)-Andreikin,D (2743) Almaty 2016}) 4. Bh4 {[%emt 0:00:13]} c5 {[%emt 0:00:09]} 5. c3 {[%emt 0:00:14]} Qb6 {[%emt 0:00:28]} 6. Qc2 {[%emt 0:02:00] A40: Unusual replies to 1 d4} cxd4 {[%emt 0:00:36]} 7. cxd4 {[%emt 0:00:26]} Nc6 {[%emt 0:00:03]} 8. e3 {[%emt 0:00:15]} d6 $146 {[%emt 0:05:14]} ({Predecessor:} 8... d5 9. Nc3 Bf5 10. Qd2 g5 11. Bg3 {½-½ (50) Litvinov,M (1753)-Dogodkina,J (2193) Izhevsk 2011}) 9. Nc3 {[%emt 0:01:08]} Bf5 {[%emt 0:00:04]} 10. Qd2 {[%emt 0:00:13]} g5 {[%emt 0:00:35]} 11. Bg3 {[%emt 0:00:08]} Nf6 {[%emt 0:00:15]} 12. Be2 {[%emt 0:01:29]} O-O {[%emt 0:02:12]} 13. O-O {[%emt 0:00:10]} Rfc8 {[%emt 0:00:22]} 14. Ne1 {[%emt 0:02:40]} Na5 {[%emt 0:05:35]} 15. b3 {[%emt 0:03:27]} Qb4 {[%emt 0:01:47]} 16. Rc1 {[%emt 0:01:18]} Nd5 {[%emt 0:16:39]} 17. a3 {[%emt 0:20:26]} Qxb3 {[%emt 0:03:25]} 18. Bd1 {[%emt 0:01:52]} Nxc3 {[%emt 0:02:03]} 19. Bxb3 {[%emt 0:01:01]} Nxb3 {[%emt 0:00:03]} 20. Qxc3 {[%emt 0:00:51]} Rxc3 {[%emt 0:00:25]} 21. Rxc3 {[%emt 0:00:06]} Nd2 {[%emt 0:00:04]} 22. Rc7 {[%emt 0:00:28]} Rc8 {[%emt 0:00:54]} 23. Rxb7 $2 {[%emt 0:01:03]} (23. Rxe7 $17 Bf8 24. Rxb7) 23... Rc1 {[%emt 0:00:44]} 24. f4 {[%emt 0:01:51]} Bd3 {[%emt 0:02:13]} 25. Rf3 {[%emt 0:02:43]} g4 {[%emt 0:06:41]} 26. Rb2 {[%emt 0:01:29] [#]} Nc4 $19 {[%emt 0:02:39]} ({Not} 26... Nxf3+ 27. gxf3 gxf3 28. Kf2 $17) (26... gxf3 27. Rxd2 Be4 28. gxf3 $17) 27. Rb3 {[%emt 0:00:57]} Be2 {[%emt 0:06:00]} 28. Rf1 {[%emt 0:03:11]} Bxf1 {[%emt 0:03:33]} 29. Rb8+ {[%emt 0:00:17]} Kh7 {[%emt 0:00:01]} 30. Kxf1 {[%emt 0:00:39]} Nxe3+ {[%emt 0:00:14]} 31. Ke2 {[%emt 0:00:00]} Bxd4 {[%emt 0:00:31]} 32. Kd3 {[%emt 0:02:30]} Nf5 {[%emt 0:01:43]} 33. Nc2 {[%emt 0:02:32]} Bc5 {[%emt 0:01:25]} 34. Be1 {[%emt 0:00:48]} Nd4 {[%emt 0:04:11]} 35. Nxd4 {[%emt 0:01:13]} Rxe1 {[%emt 0:00:17]} 36. Nc6 {[%emt 0:00:03]} Re3+ {[%emt 0:01:23]} 37. Kd2 {[%emt 0:00:33]} Rxa3 {[%emt 0:00:23]} 38. Nxe7 {[%emt 0:00:40]} Be3+ {[%emt 0:02:15]} 39. Ke2 {[%emt 0:00:34]} Bxf4 {[%emt 0:00:02]} 40. Nd5 {[%emt 0:00:10]} Be5 {[%emt 0:00:32]} 41. Rb7 {[%emt 0:00:47]} Kg7 {[%emt 0:00:45]} 42. Ne3 {[%emt 0:00:21]} h5 {[%emt 0:01:35]} 43. h3 {[%emt 0:01:16]} g3 {[%emt 0:00:43]} 44. Nc2 {[%emt 0:01:17]} Ra2 {[%emt 0:00:33]} 45. Kd3 {[%emt 0:00:07]} a5 {[%emt 0:00:25]} 46. Ne3 {[%emt 0:00:05]} a4 {[%emt 0:00:47]} 47. Ra7 {[%emt 0:00:25]} a3 {[%emt 0:00:57]} 48. Ke4 {[%emt 0:00:06]} Kf6 {[%emt 0:04:10]} 49. Nd5+ {[%emt 0:00:10]} Kg6 {[%emt 0:00:05]} 50. Ne7+ {[%emt 0:01:04]} Kh7 {[%emt 0:01:15]} 51. Nf5 {[%emt 0:02:22]} Rxg2 {[%emt 0:00:21]} 52. Rxa3 {[%emt 0:00:12]} Re2+ {[%emt 0:00:11]} 53. Kf3 {[%emt 0:00:29]} g2 {[%emt 0:00:11]} 0-1

[Event "Moscow-ch Men 2019"]
[Site "Moscow"]
[Date "2019.04.07"]
[Round "9.6"]
[White "Vorobiov, Evgeny E."]
[Black "Yeletsky, Ivan"]
[Result "1/2-1/2"]
[ECO "D85"]
[WhiteElo "2565"]
[BlackElo "2409"]
[Annotator "ChessBase"]
[PlyCount "38"]
[EventDate "2019.03.30"]
[EventType "swiss"]
[EventCountry "RUS"]
[SourceTitle "playchess.com"]
[Source "ChessBase"]
[SourceQuality "1"]
[TimeControl "5400+30"]

1. d4 {[%emt 0:00:00]} Nf6 {[%emt 0:04:09]} 2. c4 {[%emt 0:00:00]} g6 {[%emt 0:00:07]} 3. Nc3 {[%emt 0:00:00]} d5 {[%emt 0:00:32]} 4. cxd5 {[%emt 0:00:01]} Nxd5 {[%emt 0:00:07]} 5. Bd2 {[%emt 0:00:39]} Bg7 {[%emt 0:00:10]} 6. e4 {[%emt 0:00:08]} Nb6 {[%emt 0:00:09]} 7. Be3 {[%emt 0:00:07]} O-O {[%emt 0:00:10]} 8. Rc1 {[%emt 0:00:14]} Nc6 {[%emt 0:03:42]} 9. d5 {[%emt 0:01:17]} Nb8 {[%emt 0:00:08]} 10. Bb5 {[%emt 0:20:00]} c6 {[%emt 0:07:06]} 11. dxc6 {[%emt 0:00:46]} Qxd1+ {[%emt 0:01:46]} 12. Rxd1 Nxc6 {[%emt 0:19:41]} 13. Nf3 {[%emt 0:04:42]} Bxc3+ {[%emt 0:02:49]} 14. bxc3 {[%emt 0:00:07]} Be6 {[%emt 0:00:06]} 15. Bxc6 {[%emt 0:00:53]} bxc6 {[%emt 0:00:10]} 16. Nd4 {[%emt 0:00:09]} Bd7 {[%emt 0:00:27]} 17. Nb3 {[%emt 0:00:07]} Be6 {[%emt 0:00:18]} 18. Nd4 {[%emt 0:00:05]} Bd7 {[%emt 0:00:06]} 19. Nb3 {[%emt 0:00:05]} Be6 {[%emt 0:00:31]} 1/2-1/2

[Event "Moscow-ch Men 2019"]
[Site "Moscow"]
[Date "2019.04.07"]
[Round "9.7"]
[White "Galaktionov, Artem"]
[Black "Afanasiev, Nikita"]
[Result "1-0"]
[ECO "D37"]
[WhiteElo "2332"]
[BlackElo "2527"]
[Annotator "RC"]
[PlyCount "65"]
[EventDate "2019.03.30"]
[EventType "swiss"]
[EventCountry "RUS"]
[SourceTitle "playchess.com"]
[Source "ChessBase"]
[SourceQuality "1"]
[TimeControl "5400+30"]

1. d4 {[%emt 0:02:41]} Nf6 {[%emt 0:00:00]} 2. Nf3 {[%emt 0:01:02]} e6 {[%emt 0:00:00]} 3. c4 {[%emt 0:00:02]} d5 {[%emt 0:00:00]} 4. Nc3 {[%emt 0:00:06]} dxc4 {[%emt 0:00:00]} 5. e3 {[%emt 0:00:04]} a6 {[%emt 0:00:03]} 6. a4 {[%emt 0:00:03]} b6 {[%emt 0:00:10]} 7. Bxc4 {[%emt 0:00:16]} Bb7 {[%emt 0:00:05]} 8. O-O {[%emt 0:00:22]} Bb4 {[%emt 0:00:11]} 9. Qb3 {[%emt 0:05:43]} Qe7 {[%emt 0:25:31]} 10. Bd2 {[%emt 0:05:27]} Nc6 11. Qc2 Rd8 {[%emt 0:08:16]} 12. Qd3 {[%emt 0:15:08]} Nb8 {[%emt 0:10:22]} 13. Qe2 {[%emt 0:02:41]} c5 {[%emt 0:02:28]} 14. dxc5 {[%emt 0:04:02]} Qxc5 {[%emt 0:00:05]} 15. e4 {[%emt 0:01:36]} Bxc3 {[%emt 0:07:13]} 16. Bxc3 {[%emt 0:01:12]} Nxe4 {[%emt 0:00:12]} 17. Be5 {[%emt 0:09:45]} O-O {[%emt 0:13:34]} 18. Bxb8 {[%emt 0:02:43]} Rxb8 {[%emt 0:00:04]} 19. Bxa6 {[%emt 0:00:04]} Bd5 {[%emt 0:06:27]} 20. Rfc1 {[%emt 0:04:01]} Qb4 {[%emt 0:01:32]} 21. Bc4 {[%emt 0:02:48]} Ba8 {[%emt 0:00:18]} 22. Bb5 {[%emt 0:04:11]} Rbc8 {[%emt 0:03:02]} 23. h3 {[%emt 0:00:55]} Nd6 {[%emt 0:01:33]} 24. Ne5 {[%emt 0:01:31]} Nf5 {[%emt 0:16:55]} 25. Nd7 {[%emt 0:01:21]} Rxc1+ {[%emt 0:01:10]} 26. Rxc1 {[%emt 0:00:13]} Rd8 {[%emt 0:00:03]} 27. Nxb6 {[%emt 0:05:58]} Bb7 {[%emt 0:02:12]} 28. Rc7 {[%emt 0:01:08]} Nd4 {[%emt 0:01:09]} 29. Qe5 {[%emt 0:10:25]} Qxb2 {[%emt 0:01:04]} 30. Rd7 {[%emt 0:04:44]} Qc1+ {[%emt 0:00:24]} 31. Kh2 {[%emt 0:00:06]} Rxd7 {[%emt 0:00:52]} 32. Qb8+ {[%emt 0:00:34]} Bc8 {[%emt 0:00:03]} 33. Bxd7 {[%emt 0:00:07]} 1-0

[Event "Moscow-ch Men 2019"]
[Site "Moscow"]
[Date "2019.04.07"]
[Round "9.8"]
[White "Ivanov, Oleg V"]
[Black "Savchenko, Boris"]
[Result "0-1"]
[ECO "B08"]
[WhiteElo "2441"]
[BlackElo "2575"]
[Annotator "ChessBase"]
[PlyCount "74"]
[EventDate "2019.03.30"]
[EventType "swiss"]
[EventCountry "RUS"]
[SourceTitle "playchess.com"]
[Source "ChessBase"]
[SourceQuality "1"]
[TimeControl "5400+30"]

1. e4 {[%emt 0:00:00]} d6 {[%emt 0:00:25]} 2. d4 {[%emt 0:00:00]} Nf6 {[%emt 0:00:07]} 3. Nc3 {[%emt 0:00:00]} g6 {[%emt 0:00:05]} 4. Nf3 {[%emt 0:02:16]} Bg7 {[%emt 0:00:49]} 5. Be3 {[%emt 0:01:05]} c6 {[%emt 0:22:35]} 6. Qd2 {[%emt 0:03:40]} b5 7. Bd3 Nbd7 {[%emt 0:14:45]} 8. a4 {[%emt 0:13:20]} b4 {[%emt 0:00:34]} 9. Ne2 {[%emt 0:00:32]} Qa5 {[%emt 0:13:16]} 10. Bh6 {[%emt 0:08:56]} O-O {[%emt 0:03:38]} 11. O-O {[%emt 0:02:06]} e5 {[%emt 0:09:45]} 12. Ng3 {[%emt 0:14:52]} c5 {[%emt 0:12:39]} 13. Bxg7 {[%emt 0:10:22]} Kxg7 {[%emt 0:00:08]} 14. Qg5 {[%emt 0:00:23]} cxd4 {[%emt 0:00:43]} 15. Bb5 {[%emt 0:31:34]} Nc5 {[%emt 0:02:26]} 16. Bc6 {[%emt 0:01:31]} h6 {[%emt 0:01:25]} 17. Qd2 {[%emt 0:01:53]} Rb8 {[%emt 0:00:25]} 18. Nh4 {[%emt 0:00:26]} Qc7 {[%emt 0:01:33]} 19. Bd5 {[%emt 0:00:24]} Nxd5 {[%emt 0:02:47]} 20. exd5 {[%emt 0:00:02]} Qd8 {[%emt 0:03:12]} 21. Nf3 {[%emt 0:00:10]} a5 {[%emt 0:00:27]} 22. h4 {[%emt 0:01:39]} Bb7 {[%emt 0:00:56]} 23. h5 {[%emt 0:00:12]} Qf6 {[%emt 0:00:11]} 24. Nh2 {[%emt 0:00:17]} Qg5 {[%emt 0:01:41]} 25. f4 {[%emt 0:04:30]} Qxg3 {[%emt 0:00:10]} 26. Rf3 {[%emt 0:00:03]} Qh4 {[%emt 0:00:10]} 27. Raf1 {[%emt 0:00:11]} Ne4 {[%emt 0:01:52]} 28. Qc1 {[%emt 0:00:59]} f5 {[%emt 0:03:30]} 29. Rh3 {[%emt 0:00:25]} Qe7 {[%emt 0:00:54]} 30. hxg6 {[%emt 0:00:15]} exf4 {[%emt 0:00:24]} 31. Re1 {[%emt 0:02:09]} Rf6 {[%emt 0:01:15]} 32. Nf3 {[%emt 0:00:25]} Rxg6 {[%emt 0:00:24]} 33. Qxf4 {[%emt 0:00:07]} Qf6 {[%emt 0:00:25]} 34. Nh4 {[%emt 0:00:38]} Rg5 {[%emt 0:00:08]} 35. Rf3 {[%emt 0:00:12]} Rf8 {[%emt 0:00:26]} 36. Ref1 {[%emt 0:01:07]} Ba6 {[%emt 0:01:10]} 37. Re1 {[%emt 0:00:48]} Qe5 {[%emt 0:00:24]} 0-1

[Event "Moscow-ch Men 2019"]
[Site "Moscow"]
[Date "2019.04.07"]
[Round "9.9"]
[White "Golubov, Saveliy"]
[Black "Dvalishvili, Pavel S."]
[Result "1-0"]
[ECO "C33"]
[WhiteElo "2460"]
[BlackElo "2407"]
[Annotator "ChessBase"]
[PlyCount "77"]
[EventDate "2019.03.30"]
[EventType "swiss"]
[EventCountry "RUS"]
[SourceTitle "playchess.com"]
[Source "ChessBase"]
[SourceQuality "1"]
[TimeControl "5400+30"]

1. e4 {[%emt 0:00:00]} e5 {[%emt 0:00:00]} 2. f4 {[%emt 0:00:00]} exf4 {[%emt 0:01:09]} 3. Nc3 {[%emt 0:07:29]} d6 {[%emt 0:02:37]} 4. Bc4 {[%emt 0:16:25]} Qh4+ {[%emt 0:02:19]} 5. Kf1 {[%emt 0:02:46]} Be6 {[%emt 0:00:02]} 6. Qe2 c6 {[%emt 0:15:45]} 7. d4 {[%emt 0:07:49]} Nf6 {[%emt 0:04:37]} 8. Nf3 {[%emt 0:11:41]} Bxc4 {[%emt 0:03:33]} 9. Qxc4 {[%emt 0:00:30]} Qg4 {[%emt 0:00:02]} 10. h3 {[%emt 0:05:14]} Qd7 {[%emt 0:04:09]} 11. Bxf4 {[%emt 0:01:07]} Be7 {[%emt 0:00:18]} 12. Kf2 {[%emt 0:13:54]} O-O {[%emt 0:02:18]} 13. Rhe1 {[%emt 0:01:32]} Na6 {[%emt 0:02:21]} 14. Kg1 {[%emt 0:01:56]} d5 {[%emt 0:07:34]} 15. exd5 {[%emt 0:03:12]} cxd5 {[%emt 0:00:53]} 16. Qb5 {[%emt 0:02:34]} Bb4 {[%emt 0:00:57]} 17. Qd3 {[%emt 0:00:00]} Bxc3 {[%emt 0:04:48]} 18. bxc3 {[%emt 0:01:26]} Rac8 {[%emt 0:00:48]} 19. Rab1 {[%emt 0:02:20]} Qc6 {[%emt 0:09:32]} 20. Re7 {[%emt 0:06:46]} Qxc3 {[%emt 0:08:54]} 21. Rbxb7 {[%emt 0:01:27]} Qxd3 {[%emt 0:00:19]} 22. cxd3 {[%emt 0:00:01]} Nb8 {[%emt 0:00:16]} 23. Bxb8 {[%emt 0:02:15]} Rxb8 {[%emt 0:00:01]} 24. Rxa7 {[%emt 0:00:45]} Rb1+ {[%emt 0:00:55]} 25. Kh2 {[%emt 0:00:45]} h6 {[%emt 0:02:01]} 26. Ne5 {[%emt 0:02:37]} Re1 {[%emt 0:00:02]} 27. Rxf7 {[%emt 0:02:16]} Rxf7 {[%emt 0:00:03]} 28. Nxf7 {[%emt 0:00:22]} Nh5 {[%emt 0:00:35]} 29. Nd6 {[%emt 0:03:59]} Re2 {[%emt 0:01:57]} 30. Nf5 {[%emt 0:00:22]} Kf8 {[%emt 0:00:00]} 31. a4 {[%emt 0:03:15]} g5 {[%emt 0:00:19]} 32. Ra8+ {[%emt 0:00:31]} Kf7 {[%emt 0:00:01]} 33. Nxh6+ {[%emt 0:00:10]} Kg6 {[%emt 0:00:01]} 34. Ra6+ {[%emt 0:00:24]} Kh7 {[%emt 0:00:03]} 35. Nf7 {[%emt 0:00:20]} Nf4 {[%emt 0:00:11]} 36. Nxg5+ {[%emt 0:00:04]} Kg7 {[%emt 0:00:02]} 37. Kg3 {[%emt 0:00:21]} Nxg2 {[%emt 0:00:02]} 38. Ne6+ {[%emt 0:00:26]} Kf7 {[%emt 0:00:08]} 39. Nf4 {[%emt 0:00:17]} 1-0

[Event "Moscow-ch Men 2019"]
[Site "Moscow"]
[Date "2019.04.07"]
[Round "9.11"]
[White "Dragomarezkij, Evgeni"]
[Black "Smirnov, Timofey"]
[Result "0-1"]
[ECO "A11"]
[WhiteElo "2386"]
[BlackElo "2345"]
[Annotator "NA"]
[PlyCount "142"]
[EventDate "2019.03.30"]
[EventType "swiss"]
[EventCountry "RUS"]
[SourceTitle "playchess.com"]
[Source "ChessBase"]
[SourceQuality "1"]
[TimeControl "5400+30"]

1. c4 {[%emt 0:23:01]} c6 {[%emt 0:00:00]} 2. Nf3 {[%emt 0:00:10]} d5 {[%emt 0:00:00]} 3. e3 {[%emt 0:00:24]} Bg4 {[%emt 0:00:00]} 4. Qb3 {[%emt 0:06:44]} Qc7 {[%emt 0:00:00]} 5. d4 {[%emt 0:01:26]} Bxf3 {[%emt 0:00:53]} 6. gxf3 {[%emt 0:00:09]} e6 {[%emt 0:00:14]} 7. Nd2 {[%emt 0:00:41]} Nf6 {[%emt 0:00:51]} 8. f4 {[%emt 0:02:44]} Nbd7 {[%emt 0:00:45]} 9. cxd5 {[%emt 0:03:08]} Nxd5 {[%emt 0:04:23]} 10. Bg2 {[%emt 0:00:55]} Be7 11. Ne4 {[%emt 0:02:17]} Qb6 {[%emt 0:08:56]} 12. Qa4 {[%emt 0:02:37]} Bb4+ {[%emt 0:03:59]} 13. Bd2 {[%emt 0:05:31]} Bxd2+ {[%emt 0:00:09]} 14. Nxd2 {[%emt 0:00:12]} O-O {[%emt 0:00:05]} 15. Rb1 {[%emt 0:07:03]} Rfd8 {[%emt 0:03:54]} 16. O-O {[%emt 0:01:42]} Rac8 {[%emt 0:04:20]} 17. Rfc1 {[%emt 0:00:52]} a6 {[%emt 0:05:03]} 18. b4 {[%emt 0:05:09]} Qc7 {[%emt 0:04:38]} 19. Qb3 {[%emt 0:04:03]} N7f6 {[%emt 0:01:18]} 20. a4 {[%emt 0:01:39]} Qe7 {[%emt 0:02:03]} 21. Nf3 {[%emt 0:04:26]} Ne4 {[%emt 0:01:21]} 22. Rb2 {[%emt 0:01:12]} Nd6 $11 {[%emt 0:00:47]} 23. Bf1 {[%emt 0:01:39]} h6 {[%emt 0:03:25]} 24. Kh1 {[%emt 0:00:44]} Kh8 {[%emt 0:01:00]} 25. Bd3 {[%emt 0:00:44]} Rg8 {[%emt 0:02:15]} 26. Rg1 {[%emt 0:01:34]} Qc7 {[%emt 0:00:15]} 27. Ne5 {[%emt 0:01:50]} g6 {[%emt 0:03:24]} 28. Qc2 {[%emt 0:01:04]} Ne7 {[%emt 0:01:48]} 29. Qc5 {[%emt 0:01:35]} Rg7 {[%emt 0:01:56]} 30. b5 {[%emt 0:00:26]} b6 {[%emt 0:04:01]} 31. Qc2 {[%emt 0:02:19]} cxb5 {[%emt 0:01:32]} 32. Qxc7 {[%emt 0:00:10]} Rxc7 {[%emt 0:00:02]} 33. axb5 {[%emt 0:00:32]} a5 {[%emt 0:01:17]} 34. Nc6 {[%emt 0:04:22]} Nd5 {[%emt 0:01:27]} 35. Rb3 {[%emt 0:02:29]} Rg8 {[%emt 0:00:54]} 36. Kg2 {[%emt 0:00:10]} Nc8 {[%emt 0:09:03]} 37. Be4 {[%emt 0:01:18]} Nce7 {[%emt 0:00:03]} 38. Bxd5 {[%emt 0:02:50]} Nxd5 {[%emt 0:00:09]} 39. Rc1 {[%emt 0:02:45]} Rgc8 {[%emt 0:01:29]} 40. Rc4 {[%emt 0:00:32]} Kg7 {[%emt 0:01:33]} 41. Kf3 {[%emt 0:00:25]} f5 {[%emt 0:00:13]} 42. h4 {[%emt 0:00:30]} Kf6 {[%emt 0:01:30]} 43. e4 {[%emt 0:02:54]} fxe4+ {[%emt 0:01:24]} 44. Kxe4 {[%emt 0:00:01]} h5 {[%emt 0:00:22]} 45. Rc1 {[%emt 0:02:09]} Ne7 {[%emt 0:01:39]} 46. Rcb1 {[%emt 0:00:18]} Nf5 {[%emt 0:00:52]} 47. Rh1 {[%emt 0:00:12]} Nd6+ {[%emt 0:00:36]} 48. Kd3 {[%emt 0:00:02]} Nxb5 {[%emt 0:01:12]} 49. Rxb5 {[%emt 0:00:01]} Rxc6 {[%emt 0:00:02]} 50. Rhb1 {[%emt 0:00:02]} Rc2 {[%emt 0:01:45]} 51. d5 {[%emt 0:00:24]} R2c3+ {[%emt 0:03:07]} 52. Ke2 {[%emt 0:00:12]} Rc2+ {[%emt 0:05:10]} 53. Kf3 {[%emt 0:00:02]} R8c3+ {[%emt 0:00:09]} 54. Kg2 {[%emt 0:00:23]} exd5 {[%emt 0:00:38]} 55. Rxb6+ {[%emt 0:00:49]} Rc6 {[%emt 0:01:00]} 56. R1b5 {[%emt 0:00:33]} a4 {[%emt 0:03:13]} 57. Rxc6+ {[%emt 0:00:26]} Rxc6 {[%emt 0:00:03]} 58. Ra5 {[%emt 0:00:08]} Rc4 {[%emt 0:02:04]} 59. Kf3 {[%emt 0:02:03]} Ke6 {[%emt 0:00:42]} 60. Ke3 {[%emt 0:00:32]} Re4+ {[%emt 0:00:06]} 61. Kf3 {[%emt 0:00:05]} Rd4 {[%emt 0:02:08]} 62. Ke3 {[%emt 0:00:11]} Rb4 {[%emt 0:00:10]} 63. Ra8 {[%emt 0:00:43]} Kf5 {[%emt 0:05:42]} 64. Rf8+ {[%emt 0:00:19]} Kg4 {[%emt 0:00:02]} 65. f3+ {[%emt 0:00:32]} Kxh4 {[%emt 0:02:26]} 66. Rg8 {[%emt 0:00:28]} Rb6 {[%emt 0:01:46]} 67. f5 {[%emt 0:00:51]} Rb3+ {[%emt 0:01:28]} 68. Kf4 {[%emt 0:00:17]} g5+ {[%emt 0:00:36]} 69. Ke5 {[%emt 0:00:04]} Rxf3 {[%emt 0:00:07]} 70. Rd8 {[%emt 0:01:54]} g4 {[%emt 0:00:26]} 71. Rxd5 {[%emt 0:00:44]} g3 {[%emt 0:00:06] Kf4} 0-1